[Event "Early-Titled-Tuesday-Blitz-May-14-2024"]
[Site "Chess.com"]
[Date "2024.05.14"]
[Round "3"]
[White "laboratorio25"]
[Black "Zurability"]
[Result "0-1"]
[WhiteElo "2532"]
[BlackElo "2810"]
[TimeControl "180+1"]
[EndTime "8:31:26 PDT"]
[Termination "Zurability won by resignation"]

1. e4 {[%clk 0:03:00.9]} 1... c5 {[%clk 0:02:53.7]} 2. Nf3 {[%clk 0:03:00.5]}
2... d6 {[%clk 0:02:53.4]} 3. d4 {[%clk 0:03:01.1]} 3... cxd4 {[%clk 0:02:54.3]}
4. Nxd4 {[%clk 0:03:01.7]} 4... Nf6 {[%clk 0:02:54.9]} 5. Nc3 {[%clk 0:03:02.3]}
5... g6 {[%clk 0:02:54.4]} 6. Be3 {[%clk 0:03:01.9]} 6... Bg7 {[%clk 0:02:55]}
7. f3 {[%clk 0:03:02.2]} 7... a6 {[%clk 0:02:55.7]} 8. Qd2 {[%clk 0:03:02.8]}
8... Nbd7 {[%clk 0:02:56.3]} 9. g4 {[%clk 0:03:01.6]} 9... b5 {[%clk 0:02:54.4]}
10. g5 {[%clk 0:03:01.6]} 10... Nh5 {[%clk 0:02:54.6]} 11. O-O-O {[%clk
0:02:56.3]} 11... Bb7 {[%clk 0:02:54.7]} 12. Kb1 {[%clk 0:02:56.2]} 12... Rc8
{[%clk 0:02:53.8]} 13. Bh3 {[%clk 0:02:54.3]} 13... O-O {[%clk 0:02:50]} 14. Bg4
{[%clk 0:02:50.7]} 14... Ne5 {[%clk 0:02:49.4]} 15. Bxc8 {[%clk 0:02:48.9]}
15... Qxc8 {[%clk 0:02:44.9]} 16. Qe2 {[%clk 0:02:38.7]} 16... Nc4 {[%clk
0:02:42.5]} 17. Bc1 {[%clk 0:02:29.4]} 17... Na3+ {[%clk 0:02:29]} 18. Ka1
{[%clk 0:02:29.4]} 18... b4 {[%clk 0:02:26.4]} 19. bxa3 {[%clk 0:02:13.6]} 19...
bxc3 {[%clk 0:01:57.9]} 20. Nb3 {[%clk 0:02:09.1]} 20... Qc7 {[%clk 0:01:48]}
21. Qd3 {[%clk 0:02:00.7]} 21... a5 {[%clk 0:01:46.4]} 22. Qb5 {[%clk
0:01:59.4]} 22... Ra8 {[%clk 0:01:45.2]} 23. Be3 {[%clk 0:01:55.3]} 23... a4
{[%clk 0:01:42]} 24. Nd4 {[%clk 0:01:47.6]} 24... Ba6 {[%clk 0:01:06.4]} 25.
Qxa4 {[%clk 0:01:38.5]} 25... Qc8 {[%clk 0:00:52.6]} 26. Rb1 {[%clk 0:01:24.6]}
26... Bc4 {[%clk 0:00:38.9]} 27. Qb4 {[%clk 0:01:19]} 27... Nf4 {[%clk
0:00:35.2]} 28. Rhd1 {[%clk 0:01:04.4]} 28... Ne6 {[%clk 0:00:31]} 29. Nxe6
{[%clk 0:01:02.3]} 29... Bxe6 {[%clk 0:00:25.5]} 30. Bd4 {[%clk 0:00:59.9]}
30... Bxd4 {[%clk 0:00:23.6]} 31. Rxd4 {[%clk 0:01:00.8]} 31... Qa6 {[%clk
0:00:19.9]} 32. a4 {[%clk 0:00:54.4]} 32... Qe2 {[%clk 0:00:16.5]} 33. Qxc3
{[%clk 0:00:52.6]} 33... Rc8 {[%clk 0:00:15.7]} 34. Qd3 {[%clk 0:00:40]} 34...
Qxh2 {[%clk 0:00:15.8]} 35. Rc1 {[%clk 0:00:33.9]} 35... Qe5 {[%clk 0:00:13.3]}
36. c3 {[%clk 0:00:29.2]} 36... Qxg5 {[%clk 0:00:13.6]} 37. Qd2 {[%clk
0:00:27.7]} 37... Qc5 {[%clk 0:00:11.4]} 38. Rb4 {[%clk 0:00:24.5]} 38... h5
{[%clk 0:00:11.3]} 39. f4 {[%clk 0:00:22.9]} 39... Bc4 {[%clk 0:00:09.8]} 40. f5
{[%clk 0:00:22.4]} 40... Qe5 {[%clk 0:00:09.7]} 41. fxg6 {[%clk 0:00:21.9]}
41... fxg6 {[%clk 0:00:10.1]} 42. Qe3 {[%clk 0:00:16.3]} 42... Bf7 {[%clk
0:00:09.9]} 43. Rb2 {[%clk 0:00:12.5]} 43... Rc4 {[%clk 0:00:08.7]} 44. Re2
{[%clk 0:00:10.7]} 44... Rxa4 {[%clk 0:00:08.2]} 45. Rb1 {[%clk 0:00:10]} 45...
Qe6 {[%clk 0:00:04.1]} 46. Rbb2 {[%clk 0:00:06.6]} 46... Ra3 {[%clk 0:00:02.6]}
47. Qh6 {[%clk 0:00:05.2]} 47... Ra8 {[%clk 0:00:01.4]} 48. e5 {[%clk
0:00:02.3]} 48... dxe5 {[%clk 0:00:01.3]} 49. Red2 {[%clk 0:00:02.8]} 49... e4
{[%clk 0:00:01.7]} 50. Qe3 {[%clk 0:00:02.8]} 50... Qe5 {[%clk 0:00:02.3]} 51.
Re2 {[%clk 0:00:03.7]} 51... Qe6 {[%clk 0:00:02.6]} 52. Qxe4 {[%clk 0:00:04.3]}
52... Qf6 {[%clk 0:00:02.8]} 53. Qe3 {[%clk 0:00:04.1]} 53... Qd6 {[%clk
0:00:02.9]} 54. Re1 {[%clk 0:00:04.5]} 54... Ra6 {[%clk 0:00:03.4]} 55. Ree2
{[%clk 0:00:05]} 55... Kh7 {[%clk 0:00:04]} 56. Red2 {[%clk 0:00:05.3]} 56...
Qe6 {[%clk 0:00:04.2]} 57. Qxe6 {[%clk 0:00:05.2]} 57... Rxe6 {[%clk 0:00:04.9]}
58. Re2 {[%clk 0:00:05.6]} 58... Rf6 {[%clk 0:00:04.1]} 59. Rxe7 {[%clk
0:00:05.6]} 59... h4 {[%clk 0:00:04.6]} 60. Rh2 {[%clk 0:00:04.5]} 60... g5
{[%clk 0:00:05.2]} 61. Re5 {[%clk 0:00:04.6]} 61... Kg6 {[%clk 0:00:05.6]} 62.
Rg2 {[%clk 0:00:04.1]} 62... Rf5 {[%clk 0:00:06.1]} 63. Rxf5 {[%clk 0:00:04.2]}
63... Kxf5 {[%clk 0:00:07]} 64. Rf2+ {[%clk 0:00:04.9]} 64... Kg6 {[%clk
0:00:07.5]} 65. a4 {[%clk 0:00:05]} 65... h3 {[%clk 0:00:07.6]} 66. a5 {[%clk
0:00:05.5]} 66... Bd5 {[%clk 0:00:08]} 67. c4 {[%clk 0:00:05.3]} 67... Bg2
{[%clk 0:00:07.7]} 68. Kb2 {[%clk 0:00:02.7]} 68... h2 {[%clk 0:00:05.5]} 69.
Rxg2 {[%clk 0:00:02.7]} 69... h1=Q {[%clk 0:00:06.2]} 70. Rc2 {[%clk 0:00:03.5]}
70... Qb7+ {[%clk 0:00:06.3]} 71. Ka3 {[%clk 0:00:03.6]} 71... g4 {[%clk
0:00:06.3]} 72. Rb2 {[%clk 0:00:03.4]} 72... Qc7 {[%clk 0:00:06.1]} 73. Rb6+
{[%clk 0:00:03.5]} 73... Kg5 {[%clk 0:00:05.9]} 74. Kb4 {[%clk 0:00:03.9]} 74...
g3 {[%clk 0:00:05.8]} 75. Rb5+ {[%clk 0:00:04.3]} 75... Kh4 {[%clk 0:00:05.7]}
76. a6 {[%clk 0:00:05.2]} 76... g2 {[%clk 0:00:05.6]} 77. Rb7 {[%clk 0:00:05.4]}
77... Qd6+ {[%clk 0:00:06.1]} 78. Kb5 {[%clk 0:00:05]} 78... Qe5+ {[%clk
0:00:05.8]} 79. c5 {[%clk 0:00:04.5]} 79... g1=Q {[%clk 0:00:06.3]} 80. Rh7+
{[%clk 0:00:03.9]} 80... Kg5 {[%clk 0:00:06]} 81. a7 {[%clk 0:00:02.9]} 81...
Qb1+ {[%clk 0:00:06.4]} 82. Kc6 {[%clk 0:00:03.1]} 82... Qbe4+ {[%clk
0:00:06.3]} 83. Kb6 {[%clk 0:00:02.9]} 83... Qe6+ {[%clk 0:00:06.7]} 84. Kb5
{[%clk 0:00:02.9]} 84... Q6c6+ {[%clk 0:00:06.2]} 0-1

[Event "Early-Titled-Tuesday-Blitz-May-14-2024"]
[Site "Chess.com"]
[Date "2024.05.14"]
[Round "3"]
[White "Let_it_be_1"]
[Black "Agibileg"]
[Result "1/2-1/2"]
[WhiteElo "2634"]
[BlackElo "2900"]
[TimeControl "180+1"]
[EndTime "8:31:28 PDT"]
[Termination "Game drawn by repetition"]

1. e4 {[%clk 0:03:00.9]} 1... c5 {[%clk 0:02:59.9]} 2. Nf3 {[%clk 0:03:00.7]}
2... e6 {[%clk 0:02:57.3]} 3. d4 {[%clk 0:03:00.7]} 3... cxd4 {[%clk 0:02:58.2]}
4. Nxd4 {[%clk 0:03:01.3]} 4... Nc6 {[%clk 0:02:58.6]} 5. Nc3 {[%clk 0:03:01.6]}
5... a6 {[%clk 0:02:58.7]} 6. Be2 {[%clk 0:03:01.5]} 6... Qc7 {[%clk 0:02:56.6]}
7. O-O {[%clk 0:03:01.3]} 7... Nf6 {[%clk 0:02:56.8]} 8. a4 {[%clk 0:03:01.1]}
8... Be7 {[%clk 0:02:56.2]} 9. Be3 {[%clk 0:03:00.4]} 9... O-O {[%clk
0:02:55.9]} 10. f4 {[%clk 0:03:00.3]} 10... d6 {[%clk 0:02:56.2]} 11. Kh1 {[%clk
0:02:59]} 11... Nxd4 {[%clk 0:02:54.7]} 12. Qxd4 {[%clk 0:02:58.5]} 12... e5
{[%clk 0:02:41.8]} 13. Qd3 {[%clk 0:02:58.6]} 13... exf4 {[%clk 0:02:40.7]} 14.
Bxf4 {[%clk 0:02:58.5]} 14... Be6 {[%clk 0:02:40.8]} 15. Rad1 {[%clk 0:02:57.4]}
15... Rad8 {[%clk 0:02:39.4]} 16. Qg3 {[%clk 0:02:57.2]} 16... Rfe8 {[%clk
0:02:34.7]} 17. e5 {[%clk 0:02:53.7]} 17... dxe5 {[%clk 0:02:02.6]} 18. Bxe5
{[%clk 0:02:53.8]} 18... Qb6 {[%clk 0:01:59.4]} 19. Bxf6 {[%clk 0:02:00.3]}
19... Bxf6 {[%clk 0:01:57.8]} 20. Rxf6 {[%clk 0:01:59]} 20... Qxb2 {[%clk
0:01:57.8]} 21. Rxd8 {[%clk 0:01:32.6]} 21... Rxd8 {[%clk 0:01:58.7]} 22. Qc7
{[%clk 0:01:14.5]} 22... Re8 {[%clk 0:01:41.8]} 23. Rf3 {[%clk 0:00:51.4]} 23...
Qxc2 {[%clk 0:01:37.1]} 24. Qxb7 {[%clk 0:00:30.4]} 24... h5 {[%clk 0:01:02.5]}
25. h3 {[%clk 0:00:28.3]} 25... Rc8 {[%clk 0:00:53.2]} 26. Qb4 {[%clk 0:00:21]}
26... Rxc3 {[%clk 0:00:43.5]} 27. Qxc3 {[%clk 0:00:19.3]} 27... Qxe2 {[%clk
0:00:43.6]} 28. Qd4 {[%clk 0:00:13.7]} 28... Qe1+ {[%clk 0:00:31.3]} 29. Kh2
{[%clk 0:00:13.7]} 29... Qa5 {[%clk 0:00:28.2]} 30. Re3 {[%clk 0:00:12.7]} 30...
Qc7+ {[%clk 0:00:27.8]} 31. Qe5 {[%clk 0:00:12.2]} 31... Qb6 {[%clk 0:00:28.2]}
32. Rd3 {[%clk 0:00:09.7]} 32... h4 {[%clk 0:00:25.3]} 33. Qd4 {[%clk
0:00:09.4]} 33... Qc7+ {[%clk 0:00:20.7]} 34. Qd6 {[%clk 0:00:09.7]} 34... Qc4
{[%clk 0:00:11.9]} 35. Rd4 {[%clk 0:00:10.1]} 35... Qc8 {[%clk 0:00:07.7]} 36.
Qd8+ {[%clk 0:00:10.1]} 36... Qxd8 {[%clk 0:00:08.2]} 37. Rxd8+ {[%clk
0:00:10.2]} 37... Kh7 {[%clk 0:00:09.1]} 38. Rd6 {[%clk 0:00:09.5]} 38... Bc4
{[%clk 0:00:09.3]} 39. g3 {[%clk 0:00:09.4]} 39... hxg3+ {[%clk 0:00:09.4]} 40.
Kxg3 {[%clk 0:00:10]} 40... f6 {[%clk 0:00:10]} 41. h4 {[%clk 0:00:09.6]} 41...
Kg6 {[%clk 0:00:09.9]} 42. a5 {[%clk 0:00:09.3]} 42... Kh6 {[%clk 0:00:08.9]}
43. Kf4 {[%clk 0:00:08]} 43... Kh5 {[%clk 0:00:07.9]} 44. Kg3 {[%clk 0:00:08.2]}
44... Bf1 {[%clk 0:00:06.8]} 45. Rd5+ {[%clk 0:00:07.7]} 45... Kh6 {[%clk
0:00:07.1]} 46. Kf4 {[%clk 0:00:07.3]} 46... Bc4 {[%clk 0:00:06.6]} 47. Rc5
{[%clk 0:00:07.3]} 47... Bf1 {[%clk 0:00:05.9]} 48. Ke3 {[%clk 0:00:06.9]} 48...
g5 {[%clk 0:00:04.6]} 49. hxg5+ {[%clk 0:00:06.2]} 49... fxg5 {[%clk 0:00:05.5]}
50. Kf3 {[%clk 0:00:06.6]} 50... Kh5 {[%clk 0:00:04.8]} 51. Kg3 {[%clk
0:00:06.8]} 51... Bd3 {[%clk 0:00:04.4]} 52. Rd5 {[%clk 0:00:06.7]} 52... Bc4
{[%clk 0:00:04.3]} 53. Rd8 {[%clk 0:00:06.5]} 53... Bb5 {[%clk 0:00:04.2]} 54.
Rb8 {[%clk 0:00:05.8]} 54... Bc4 {[%clk 0:00:04.2]} 55. Rb6 {[%clk 0:00:06.7]}
55... Bd3 {[%clk 0:00:03.5]} 56. Rc6 {[%clk 0:00:06.4]} 56... Bb5 {[%clk
0:00:03.1]} 57. Rc5 {[%clk 0:00:06.7]} 57... Bf1 {[%clk 0:00:03.6]} 58. Rc8
{[%clk 0:00:06.9]} 58... Kg6 {[%clk 0:00:03.9]} 59. Rg8+ {[%clk 0:00:06.9]}
59... Kf5 {[%clk 0:00:04.1]} 60. Rg7 {[%clk 0:00:06.6]} 60... Kf6 {[%clk
0:00:04.3]} 61. Rg8 {[%clk 0:00:06.6]} 61... Bc4 {[%clk 0:00:03.5]} 62. Rf8+
{[%clk 0:00:06.5]} 62... Kg6 {[%clk 0:00:04]} 63. Rc8 {[%clk 0:00:06]} 63... Bb5
{[%clk 0:00:03.8]} 64. Rc5 {[%clk 0:00:06.2]} 64... Bf1 {[%clk 0:00:03.7]} 65.
Kg4 {[%clk 0:00:06.6]} 65... Be2+ {[%clk 0:00:03.8]} 66. Kg3 {[%clk 0:00:07.1]}
66... Bf1 {[%clk 0:00:04.6]} 67. Rc6+ {[%clk 0:00:07.6]} 67... Kh5 {[%clk
0:00:04.9]} 68. Rc5 {[%clk 0:00:07.9]} 68... Bd3 {[%clk 0:00:05]} 69. Rc6 {[%clk
0:00:07.8]} 69... Be2 {[%clk 0:00:05.1]} 70. Rd6 {[%clk 0:00:07.7]} 70... Bb5
{[%clk 0:00:05.4]} 71. Rd5 {[%clk 0:00:07.9]} 71... Bc4 {[%clk 0:00:05.6]} 72.
Rd4 {[%clk 0:00:08]} 72... Be2 {[%clk 0:00:05.6]} 73. Rd2 {[%clk 0:00:07.9]}
73... Bc4 {[%clk 0:00:05.3]} 74. Rc2 {[%clk 0:00:07.2]} 74... Bb5 {[%clk
0:00:05.3]} 75. Rc3 {[%clk 0:00:07.6]} 75... Bf1 {[%clk 0:00:05.2]} 76. Rc5
{[%clk 0:00:07.8]} 1/2-1/2

[Event "Early-Titled-Tuesday-Blitz-May-14-2024"]
[Site "Chess.com"]
[Date "2024.05.14"]
[Round "4"]
[White "Nikita_Klepikov"]
[Black "olakenn"]
[Result "1-0"]
[WhiteElo "2321"]
[BlackElo "1920"]
[TimeControl "180+1"]
[EndTime "8:35:10 PDT"]
[Termination "Nikita_Klepikov won by checkmate"]

1. e4 {[%clk 0:02:59]} 1... c6 {[%clk 0:02:55.8]} 2. d4 {[%clk 0:02:59]} 2... d5
{[%clk 0:02:43.6]} 3. Nd2 {[%clk 0:02:59.1]} 3... dxe4 {[%clk 0:02:43.7]} 4.
Nxe4 {[%clk 0:03:00]} 4... Bf5 {[%clk 0:02:43.7]} 5. Ng3 {[%clk 0:03:00.4]} 5...
Bg6 {[%clk 0:02:44.3]} 6. N1e2 {[%clk 0:03:01]} 6... Nd7 {[%clk 0:02:43.9]} 7.
h4 {[%clk 0:03:01.6]} 7... h6 {[%clk 0:02:43.6]} 8. Nf4 {[%clk 0:03:02.1]} 8...
Ngf6 {[%clk 0:02:42.3]} 9. Nxg6 {[%clk 0:03:01.8]} 9... fxg6 {[%clk 0:02:42.8]}
10. Bd3 {[%clk 0:03:01.4]} 10... Kf7 {[%clk 0:02:36.3]} 11. h5 {[%clk
0:03:01.2]} 11... gxh5 {[%clk 0:02:36.3]} 12. Nxh5 {[%clk 0:03:00.9]} 12... Nxh5
{[%clk 0:02:31.4]} 13. Qxh5+ {[%clk 0:03:00.6]} 13... Kg8 {[%clk 0:02:31.6]} 14.
Bc4+ {[%clk 0:02:58.1]} 14... Kh7 {[%clk 0:02:28.8]} 15. Qf5+ {[%clk 0:02:55.6]}
15... g6 {[%clk 0:02:25.2]} 16. Qf7+ {[%clk 0:02:55.9]} 16... Bg7 {[%clk
0:02:25.2]} 17. Rxh6# {[%clk 0:02:55.9]} 1-0

[Event "Early-Titled-Tuesday-Blitz-May-14-2024"]
[Site "Chess.com"]
[Date "2024.05.14"]
[Round "4"]
[White "Niilo1"]
[Black "dennisodessa"]
[Result "1-0"]
[WhiteElo "2311"]
[BlackElo "2490"]
[TimeControl "180+1"]
[EndTime "8:35:25 PDT"]
[Termination "Niilo1 won by resignation"]

1. e4 {[%clk 0:03:00.9]} 1... e6 {[%clk 0:02:56.9]} 2. d4 {[%clk 0:03:00.1]}
2... d5 {[%clk 0:02:55.6]} 3. e5 {[%clk 0:02:59.7]} 3... c5 {[%clk 0:02:51.5]}
4. c3 {[%clk 0:03:00]} 4... Nc6 {[%clk 0:02:51.8]} 5. Nf3 {[%clk 0:02:59.9]}
5... Qb6 {[%clk 0:02:51.9]} 6. Na3 {[%clk 0:02:59]} 6... Bd7 {[%clk 0:02:49.7]}
7. Nc2 {[%clk 0:02:58.2]} 7... Nge7 {[%clk 0:02:48.1]} 8. Bd3 {[%clk 0:02:58]}
8... Nf5 {[%clk 0:02:37.2]} 9. O-O {[%clk 0:02:48.8]} 9... cxd4 {[%clk
0:02:35.7]} 10. cxd4 {[%clk 0:02:48.4]} 10... Nfxd4 {[%clk 0:02:33.8]} 11. Nfxd4
{[%clk 0:02:48.3]} 11... Nxd4 {[%clk 0:02:34]} 12. Be3 {[%clk 0:02:48.8]} 12...
Nxc2 {[%clk 0:02:30.7]} 13. Bxb6 {[%clk 0:02:48.1]} 13... Nxa1 {[%clk
0:02:31.6]} 14. Bd4 {[%clk 0:02:33]} 1-0

[Event "Early-Titled-Tuesday-Blitz-May-14-2024"]
[Site "Chess.com"]
[Date "2024.05.14"]
[Round "4"]
[White "ab-lsv"]
[Black "ATM622"]
[Result "0-1"]
[WhiteElo "2355"]
[BlackElo "2551"]
[TimeControl "180+1"]
[EndTime "8:35:26 PDT"]
[Termination "ATM622 won by resignation"]

1. d4 {[%clk 0:02:59.5]} 1... d5 {[%clk 0:02:59]} 2. c4 {[%clk 0:02:59.8]} 2...
e6 {[%clk 0:02:58.8]} 3. Nc3 {[%clk 0:03:00.1]} 3... Nf6 {[%clk 0:02:58.2]} 4.
Bg5 {[%clk 0:03:00.3]} 4... Be7 {[%clk 0:02:57.8]} 5. Nf3 {[%clk 0:03:00.4]}
5... O-O {[%clk 0:02:57.2]} 6. e3 {[%clk 0:03:00.6]} 6... h6 {[%clk 0:02:51.9]}
7. Bxf6 {[%clk 0:03:00.6]} 7... Bxf6 {[%clk 0:02:51.5]} 8. Rc1 {[%clk 0:03:01]}
8... c5 {[%clk 0:02:46.6]} 9. dxc5 {[%clk 0:03:01]} 9... dxc4 {[%clk 0:02:46.5]}
10. Qxd8 {[%clk 0:02:51.2]} 10... Rxd8 {[%clk 0:02:46.1]} 11. Bxc4 {[%clk
0:02:51.6]} 11... Nd7 {[%clk 0:02:42.5]} 12. b4 {[%clk 0:02:50.4]} 12... a5
{[%clk 0:02:39.7]} 13. a3 {[%clk 0:02:50.3]} 13... axb4 {[%clk 0:02:33.5]} 14.
axb4 {[%clk 0:02:51.2]} 14... Bxc3+ {[%clk 0:02:33.8]} 0-1

[Event "Early-Titled-Tuesday-Blitz-May-14-2024"]
[Site "Chess.com"]
[Date "2024.05.14"]
[Round "4"]
[White "ploxoi"]
[Black "CristianS27"]
[Result "0-1"]
[WhiteElo "2325"]
[BlackElo "2530"]
[TimeControl "180+1"]
[EndTime "8:35:30 PDT"]
[Termination "CristianS27 won by resignation"]

1. d4 {[%clk 0:02:36.6]} 1... Nf6 {[%clk 0:02:59.6]} 2. c4 {[%clk 0:02:36]} 2...
g6 {[%clk 0:03:00]} 3. Nc3 {[%clk 0:02:35.8]} 3... Bg7 {[%clk 0:03:00.9]} 4. Nf3
{[%clk 0:02:36]} 4... d6 {[%clk 0:03:01.7]} 5. e4 {[%clk 0:02:35.8]} 5... O-O
{[%clk 0:03:02.1]} 6. Be2 {[%clk 0:02:36.4]} 6... e5 {[%clk 0:03:02.4]} 7. d5
{[%clk 0:02:36.3]} 7... a5 {[%clk 0:03:02.3]} 8. Be3 {[%clk 0:02:36]} 8... Na6
{[%clk 0:03:00.2]} 9. Nd2 {[%clk 0:02:36.2]} 9... Nc5 {[%clk 0:02:58]} 10. a3
{[%clk 0:02:34.5]} 10... Ne8 {[%clk 0:02:42.8]} 11. b4 {[%clk 0:02:33.4]} 11...
axb4 {[%clk 0:02:43.1]} 12. axb4 {[%clk 0:02:34.3]} 12... Rxa1 {[%clk
0:02:43.7]} 13. Qxa1 {[%clk 0:02:35.2]} 13... Na6 {[%clk 0:02:44.6]} 14. Qa2
{[%clk 0:02:33.7]} 14... Nxb4 {[%clk 0:02:39.8]} 15. Qa3 {[%clk 0:02:18]} 15...
Nc2+ {[%clk 0:02:39.6]} 0-1

[Event "Early-Titled-Tuesday-Blitz-May-14-2024"]
[Site "Chess.com"]
[Date "2024.05.14"]
[Round "4"]
[White "CristhianPortalR"]
[Black "Iunusovnuriddin"]
[Result "1-0"]
[WhiteElo "2542"]
[BlackElo "2339"]
[TimeControl "180+1"]
[EndTime "8:36:41 PDT"]
[Termination "CristhianPortalR won by resignation"]

1. e4 {[%clk 0:03:00.9]} 1... e5 {[%clk 0:02:59.4]} 2. Nf3 {[%clk 0:03:00.5]}
2... Nc6 {[%clk 0:02:59.2]} 3. d4 {[%clk 0:03:01.1]} 3... exd4 {[%clk
0:03:00.1]} 4. Nxd4 {[%clk 0:03:01.6]} 4... Bc5 {[%clk 0:02:59.6]} 5. Nb3 {[%clk
0:02:57.3]} 5... Bb6 {[%clk 0:02:59]} 6. Nc3 {[%clk 0:02:56.1]} 6... Nf6 {[%clk
0:02:58.9]} 7. Be2 {[%clk 0:02:44]} 7... O-O {[%clk 0:02:57.4]} 8. O-O {[%clk
0:02:43.9]} 8... d6 {[%clk 0:02:54.7]} 9. Kh1 {[%clk 0:02:43.6]} 9... Re8 {[%clk
0:02:43]} 10. Nd2 {[%clk 0:02:30]} 10... Nd4 {[%clk 0:01:34.4]} 11. Bd3 {[%clk
0:02:24.7]} 11... d5 {[%clk 0:01:34.5]} 12. exd5 {[%clk 0:02:21]} 12... Nxd5
{[%clk 0:01:35.4]} 13. Nde4 {[%clk 0:02:17.9]} 13... Nxc3 {[%clk 0:01:32.7]} 14.
bxc3 {[%clk 0:02:16.5]} 14... h6 {[%clk 0:01:32.7]} 15. cxd4 {[%clk 0:02:15.4]}
1-0

[Event "Early-Titled-Tuesday-Blitz-May-14-2024"]
[Site "Chess.com"]
[Date "2024.05.14"]
[Round "4"]
[White "chito89"]
[Black "Russian_berezka"]
[Result "1-0"]
[WhiteElo "2798"]
[BlackElo "2598"]
[TimeControl "180+1"]
[EndTime "8:36:55 PDT"]
[Termination "chito89 won by resignation"]

1. e4 {[%clk 0:03:00.9]} 1... g6 {[%clk 0:02:56.1]} 2. d4 {[%clk 0:03:00.1]}
2... Bg7 {[%clk 0:02:56.7]} 3. Nf3 {[%clk 0:02:59.7]} 3... c6 {[%clk 0:02:48.5]}
4. Bd3 {[%clk 0:02:57.4]} 4... d5 {[%clk 0:02:48.5]} 5. e5 {[%clk 0:02:56.8]}
5... Bg4 {[%clk 0:02:46.5]} 6. Nbd2 {[%clk 0:02:57]} 6... e6 {[%clk 0:02:43.4]}
7. h3 {[%clk 0:02:57.1]} 7... Bxf3 {[%clk 0:02:43.4]} 8. Nxf3 {[%clk 0:02:58]}
8... h5 {[%clk 0:02:37.2]} 9. c3 {[%clk 0:02:47.8]} 9... Ne7 {[%clk 0:02:32.6]}
10. Ng5 {[%clk 0:02:36.8]} 10... Nf5 {[%clk 0:02:27.7]} 11. Qf3 {[%clk
0:02:33.7]} 11... c5 {[%clk 0:02:16.9]} 12. g4 {[%clk 0:02:30.2]} 12... hxg4
{[%clk 0:02:10.1]} 13. hxg4 {[%clk 0:02:31.1]} 13... Rxh1+ {[%clk 0:02:02.2]}
14. Qxh1 {[%clk 0:02:32]} 14... Nh6 {[%clk 0:02:02.5]} 15. Nxe6 {[%clk
0:02:25.4]} 15... fxe6 {[%clk 0:01:52.4]} 16. Bxh6 {[%clk 0:02:19.8]} 16... Kf7
{[%clk 0:01:42.2]} 17. Bxg6+ {[%clk 0:02:13.7]} 17... Kg8 {[%clk 0:01:30.6]} 18.
Bxg7 {[%clk 0:02:12.9]} 1-0

[Event "Early-Titled-Tuesday-Blitz-May-14-2024"]
[Site "Chess.com"]
[Date "2024.05.14"]
[Round "4"]
[White "valik3504"]
[Black "JoliyRoger"]
[Result "1-0"]
[WhiteElo "2554"]
[BlackElo "2423"]
[TimeControl "180+1"]
[EndTime "8:37:10 PDT"]
[Termination "valik3504 won by resignation"]

1. e4 {[%clk 0:03:00.9]} 1... c6 {[%clk 0:02:59.2]} 2. d4 {[%clk 0:02:57.6]}
2... d5 {[%clk 0:02:59.8]} 3. exd5 {[%clk 0:02:56]} 3... cxd5 {[%clk 0:02:59.9]}
4. Bd3 {[%clk 0:02:56]} 4... Nc6 {[%clk 0:03:00.4]} 5. c3 {[%clk 0:02:55.9]}
5... g6 {[%clk 0:03:00.4]} 6. Nf3 {[%clk 0:02:52.6]} 6... Bf5 {[%clk 0:03:00.8]}
7. O-O {[%clk 0:02:50.8]} 7... Nf6 {[%clk 0:03:00.7]} 8. Re1 {[%clk 0:02:41.6]}
8... e6 {[%clk 0:03:00.9]} 9. Ne5 {[%clk 0:02:24.5]} 9... Nxe5 {[%clk
0:02:55.9]} 10. dxe5 {[%clk 0:02:22.3]} 10... Bxd3 {[%clk 0:02:55.9]} 11. Bg5
{[%clk 0:02:05]} 11... Bxb1 {[%clk 0:02:46.4]} 12. Bxf6 {[%clk 0:02:02.3]} 12...
Be7 {[%clk 0:02:46.1]} 13. Bxh8 {[%clk 0:01:57.6]} 13... Bf5 {[%clk 0:02:43.5]}
14. Bf6 {[%clk 0:01:50.5]} 14... Bxf6 {[%clk 0:02:42.1]} 15. exf6 {[%clk
0:01:50.7]} 15... Qxf6 {[%clk 0:02:42.4]} 16. Qxd5 {[%clk 0:01:49.3]} 16... Rb8
{[%clk 0:02:27.9]} 17. Rad1 {[%clk 0:01:45.3]} 17... Qe7 {[%clk 0:02:16.1]} 18.
Qe5 {[%clk 0:01:43.5]} 18... Rc8 {[%clk 0:02:12.1]} 19. Qh8+ {[%clk 0:01:36.9]}
19... Qf8 {[%clk 0:02:12.5]} 20. Qxh7 {[%clk 0:01:33.2]} 20... Bc2 {[%clk
0:02:05.1]} 21. Rxe6+ {[%clk 0:01:32.1]} 1-0

[Event "Early-Titled-Tuesday-Blitz-May-14-2024"]
[Site "Chess.com"]
[Date "2024.05.14"]
[Round "4"]
[White "Makswolf200817"]
[Black "xasid81"]
[Result "1-0"]
[WhiteElo "2778"]
[BlackElo "2590"]
[TimeControl "180+1"]
[EndTime "8:37:37 PDT"]
[Termination "Makswolf200817 won by resignation"]

1. d4 {[%clk 0:03:00.9]} 1... d6 {[%clk 0:02:35.1]} 2. Nf3 {[%clk 0:02:56.9]}
2... Nf6 {[%clk 0:02:35.5]} 3. c4 {[%clk 0:02:56.5]} 3... Bg4 {[%clk 0:02:32.7]}
4. Nc3 {[%clk 0:02:54.8]} 4... Bxf3 {[%clk 0:02:32.3]} 5. exf3 {[%clk
0:02:53.5]} 5... c6 {[%clk 0:02:33]} 6. f4 {[%clk 0:02:50.5]} 6... e6 {[%clk
0:02:31.3]} 7. d5 {[%clk 0:02:37.3]} 7... exd5 {[%clk 0:02:30.4]} 8. cxd5 {[%clk
0:02:37.5]} 8... Be7 {[%clk 0:02:31]} 9. Be2 {[%clk 0:02:36.7]} 9... O-O {[%clk
0:02:31.1]} 10. O-O {[%clk 0:02:37.3]} 10... c5 {[%clk 0:02:29.2]} 11. Bd3
{[%clk 0:02:23.5]} 11... Na6 {[%clk 0:02:26.2]} 12. Re1 {[%clk 0:02:16.3]} 12...
Nc7 {[%clk 0:02:22.5]} 13. Qf3 {[%clk 0:02:05.3]} 13... Rb8 {[%clk 0:02:19.9]}
14. a4 {[%clk 0:02:05.9]} 14... b6 {[%clk 0:02:19.6]} 15. g4 {[%clk 0:02:01.6]}
15... Re8 {[%clk 0:02:13.5]} 16. g5 {[%clk 0:02:01.1]} 16... Nd7 {[%clk
0:02:13.5]} 17. b3 {[%clk 0:01:53.4]} 17... Bf8 {[%clk 0:02:08.8]} 18. Bb2
{[%clk 0:01:52.4]} 18... g6 {[%clk 0:02:09.3]} 19. Ne4 {[%clk 0:01:43.2]} 19...
Nxd5 {[%clk 0:02:02.2]} 20. Bc4 {[%clk 0:01:43.2]} 20... Nb4 {[%clk 0:01:57.3]}
21. Qc3 {[%clk 0:01:39.3]} 21... Ne5 {[%clk 0:01:49.8]} 22. Nf6+ {[%clk
0:01:36.4]} 22... Kh8 {[%clk 0:01:49.1]} 23. Nxe8 {[%clk 0:01:31.9]} 23... Qxe8
{[%clk 0:01:49.1]} 24. fxe5 {[%clk 0:01:31.8]} 24... Bg7 {[%clk 0:01:49.7]} 25.
exd6 {[%clk 0:01:26.6]} 1-0